bitfinex/quotes_SOLUSD_20250901
["timestamp","ask_amount","ask_price","bid_price","bid_amount"]
[1756747997982,2.052603,198.21,198.18,0.1]
[1756747998177,2.052603,198.21,198.2,40.44]
[1756747998669,0.03,198.21,198.2,54.03559401]
[1756747999466,0.69,198.21,198.18,0.1]
[1756747999765,0.69,198.21,198.19,40.44]
[1756748000267,0.03,198.21,198.2,40.44]
[1756748002587,0.03,198.21,198.18,0.1]
[1756748002781,0.03,198.21,198.19,40.44]
[1756748004186,0.66,198.2,198.18,0.1]
[1756748004389,0.03,198.21,198.18,0.1]
[1756748004574,0.03,198.21,198.19,40.44]
[1756748005080,0.66,198.2,198.19,40.44]
[1756748005280,0.66,198.2,198.18,0.1]
[1756748005472,0.66,198.19,198.18,0.1]
[1756748005678,0.66,198.19,198.18,40.54]
[1756748007497,0.66,198.19,198.18,0.1]
[1756748008087,0.66,198.19,198.18,40.52]
[1756748009078,0.66,198.19,198.18,0.1]
[1756748009277,0.66,198.19,198.18,40.52]
[1756748010789,0.03,198.21,198.18,40.52]
[1756748011189,26.03,198.21,198.18,40.52]
[1756748011401,0.66,198.2,198.18,40.52]
[1756748011906,0.03,198.21,198.18,40.52]
[1756748012092,0.03,198.21,198.19,13.59559401]
[1756748012289,0.03,198.21,198.2,0.14216157]
[1756748012490,0.03,198.21,198.2,3.91010486]
[1756748013398,0.03,198.21,198.2,24.86643756]
[1756748014108,0.03,198.21,198.2,18.01023973]
[1756748014302,0.03,198.21,198.2,24.86643756]
[1756748014806,0.03,198.21,198.2,58.43023973]
[1756748015189,0.03,198.21,198.2,65.285148]
[1756748016180,0.03,198.21,198.2,18.00895017]
[1756748016388,0.03,198.21,198.2,58.42895017]
[1756748017209,0.03,198.21,198.2,58.40895017]
[1756748018208,0.75,198.21,198.2,3.76665373]
[1756748018409,0.75,198.21,198.18,0.1]
[1756748018710,0.72,198.2,198.18,0.1]
[1756748019221,0.03,198.21,198.19,40.4]
[1756748021006,0.72,198.2,198.18,0.1]
[1756748021221,0.03,198.21,198.19,40.4]
[1756748022806,0.03,198.21,198.2,13.73775558]
[1756748023114,0.03,198.21,198.2,21.09849427]
[1756748024018,0.03,198.21,198.2,26.14390294]
[1756748025710,0.03,198.21,198.2,29.91264078]
[1756748026113,0.03,198.21,198.2,23.05644295]
[1756748026324,0.03,198.21,198.2,70.29264078]
[1756748027519,0.03,198.21,198.2,63.43644295]
[1756748027717,0.03,198.21,198.2,18.01103428]
[1756748027918,0.03,198.21,198.2,65.24723211]
[1756748028230,0.03,198.21,198.2,70.29264078]
[1756748032834,0.03,198.21,198.2,150.59264078]
[1756748033013,0.03,198.21,198.2,150.08809992]
[1756748033731,0.03,198.21,198.2,109.70809992]
[1756748033937,0.03,198.21,198.2,150.08809992]
[1756748034110,0.03,198.21,198.2,145.02269125]
[1756748035122,0.03,198.21,198.2,97.80649342]
[1756748035328,0.75,198.21,198.2,4.2732787]
[1756748035515,0.75,198.21,198.2,44.12873784]
[1756748035820,0.75,198.21,198.2,44.27089941]
[1756748036016,0.75,198.21,198.18,80.4]
[1756748036230,0.72,198.2,198.19,57.7222197]
[1756748036938,0.03,198.21,198.2,0.14216157]
[1756748037245,0.03,198.21,198.2,17.50438127]
[1756748038017,0.03,198.21,198.2,24.3605791]
[1756748038344,0.03,198.21,198.2,20.59395341]
[1756748038544,0.75,198.21,198.2,0.14216157]
[1756748038714,0.75,198.21,198.2,40.50216157]
[1756748040225,0.75,198.21,198.2,40.36]
[1756748040433,0.75,198.21,198.18,0.1]
[1756748040624,0.75,198.21,198.19,40.36]
[1756748040821,0.72,198.2,198.19,40.36]
[1756748043042,0.03,198.21,198.2,13.73775558]
[1756748043543,0.03,198.21,198.2,20.59395341]
[1756748043730,0.03,198.21,198.2,13.73775558]
[1756748044251,0.75,198.21,198.2,13.73775558]
[1756748045131,0.75,198.21,198.2,40.34]
[1756748045822,0.75,198.21,198.2,44.10815152]
[1756748048166,0.75,198.21,198.19,0.12]
[1756748048334,0.75,198.21,198.2,40.34]
[1756748048833,0.75,198.21,198.19,0.12]
[1756748049032,0.75,198.21,198.2,40.34]
[1756748050967,13.59559401,198.2,198.19,0.12]
[1756748051265,26.0,198.18,198.17,0.28]
[1756748051437,26.0,198.17,198.16,5.38]
[1756748051762,30.02029977,198.17,198.16,5.38]
[1756748052247,30.62886051,198.17,198.16,5.38]
[1756748052850,47.57771514,198.17,198.16,0.12]
[1756748053165,47.71987671,198.17,198.16,0.12]
[1756748053745,67.71987671,198.17,198.16,0.12]
[1756748053948,73.22107881,198.17,198.16,0.12]
[1756748054265,69.07877685,198.17,198.16,0.12]
[1756748054632,13.73775558,198.16,198.09,0.34]
[1756748054871,37.0910162,198.16,198.09,0.34]
[1756748055059,37.7510162,198.16,198.09,0.34]
[1756748055268,39.10991634,198.16,197.99,36.48]
[1756748055445,33.73775558,198.15,198.01,4.98]
[1756748055646,37.0910162,198.15,198.01,4.98]
[1756748055842,26.0,198.04,198.01,4.98]
[1756748056067,0.66,198.03,198.01,4.98]
[1756748056268,0.66,198.02,198.01,4.98]
[1756748056479,15.84872,198.02,198.01,4.98]
[1756748059137,15.18872,198.02,198.01,4.98]
[1756748059373,2.64203488,198.04,198.01,4.98]
[1756748059374,26.0,198.04,198.01,4.98]
[1756748059578,3.30168674,198.07,198.01,4.98]
[1756748059875,3.30168674,198.07,198.01,5.66]
[1756748060169,6.998359,198.04,198.01,4.98]
[1756748060373,3.30168674,198.07,198.01,4.98]
[1756748060574,26.0,198.04,198.01,4.98]
[1756748060779,4.98,198.06,198.02,0.68]
[1756748060947,29.3012222,198.1,198.03,0.68]
[1756748061344,29.3012222,198.1,198.01,4.98]
[1756748061540,4.98,198.08,198.01,4.98]
[1756748061762,0.66,198.07,198.01,4.98]
[1756748062067,0.66,198.06,198.01,40.34]
[1756748062269,4.98,198.08,198.01,40.34]
[1756748062270,26.66,198.05,198.01,40.34]
[1756748062582,0.66,198.04,198.01,40.34]
[1756748062987,26.0,198.05,198.01,40.46]
[1756748063284,0.66,198.04,198.01,40.46]
[1756748063953,0.66,198.03,198.01,40.46]
[1756748064574,26.66,198.05,198.01,40.46]
[1756748064768,0.66,198.04,198.01,40.46]
[1756748064950,26.0,198.05,198.01,40.46]
[1756748065159,0.66,198.08,198.02,0.68]
[1756748065359,0.66,198.08,198.01,40.46]
[1756748065554,0.66,198.07,198.01,40.46]
[1756748065761,26.0,198.09,198.02,0.68]
[1756748065970,0.66,198.08,198.02,0.68]
[1756748066171,0.66,198.08,198.01,0.12]
[1756748066172,26.0,198.04,198.01,0.12]
[1756748066509,0.66,198.03,198.01,0.12]
[1756748066681,26.0,198.04,197.97,0.12]
[1756748066682,0.66,198.02,197.97,0.12]
[1756748066886,26.0,197.98,197.97,0.12]
[1756748067061,40.25559401,197.98,197.97,0.12]
[1756748067459,26.66,197.98,197.97,0.12]
[1756748067657,26.0,197.98,197.97,0.12]
[1756748068155,15.192566,197.99,197.97,0.12]
[1756748068375,0.66,197.98,197.97,0.12]
[1756748068675,26.66,197.98,197.97,0.12]
[1756748069181,26.0,197.98,197.97,0.12]
[1756748069480,0.66,198.02,197.97,0.12]
[1756748069481,26.0,198.01,197.97,0.12]
[1756748069684,26.0,197.99,197.97,0.12]
[1756748069867,0.66,197.98,197.97,0.12]
[1756748070366,26.0,197.99,197.97,0.12]
[1756748071483,26.0,198.01,197.97,0.12]
[1756748071669,5.713033,198.03,197.97,0.8]
[1756748072270,26.0,198.0,197.97,0.12]
[1756748072780,26.66,198.03,197.97,0.8]
[1756748072986,2.6412222,198.1,197.98,53.95559401]
[1756748073158,0.66,198.11,198.0,13.59559401]
[1756748073357,15.18872,198.04,198.02,13.73775558]
[1756748073562,0.03,198.18,198.04,13.59559401]
[1756748073782,26.0,198.14,198.04,13.59559401]
[1756748074015,2.67084892,198.16,198.05,0.68]
[1756748074287,2.67084892,198.16,198.06,54.09775558]
[1756748074582,26.0,198.14,198.07,0.68]
[1756748074797,26.0,198.14,198.06,54.09775558]
[1756748074798,26.66,198.14,198.06,41.02]
[1756748074952,26.66,198.14,198.06,0.66]
[1756748075280,26.66,198.14,198.04,0.66]
[1756748076070,26.0,198.13,198.04,0.66]
[1756748076463,0.7,198.12,198.04,0.66]
[1756748077265,26.0,198.14,198.04,0.66]
[1756748077579,3.37084892,198.16,198.04,7.51619783]
[1756748077787,26.0,198.14,198.05,0.66]
[1756748077988,26.7,198.14,198.05,0.66]
[1756748078185,26.7,198.14,198.04,40.36]
[1756748078488,0.7,198.13,198.04,40.36]
[1756748078871,26.0,198.14,198.05,0.66]
[1756748079071,26.0,198.14,198.06,13.59559401]
[1756748079387,0.03,198.16,198.07,0.66]
[1756748079592,26.0,198.14,198.07,41.02]
[1756748079884,26.0,198.14,198.07,0.66]
[1756748080073,26.0,198.12,198.05,40.34]
[1756748080273,26.0,198.12,198.04,0.66]
[1756748080472,0.7,198.11,198.04,0.66]
[1756748080687,0.7,198.11,198.02,41.0]
[1756748081065,0.7,198.1,198.05,0.12]
[1756748081271,0.7,198.09,198.05,0.12]
[1756748081985,26.0,198.12,198.05,0.12]
[1756748082289,0.7,198.08,198.05,0.12]
[1756748082687,0.7,198.07,198.05,0.12]
[1756748082882,26.0,198.12,198.05,0.12]
[1756748083080,0.7,198.1,198.05,0.12]
[1756748083306,0.7,198.09,198.05,0.12]
[1756748083467,0.7,198.08,198.05,0.12]
[1756748083980,26.0,198.12,198.05,0.12]
[1756748084798,0.7,198.11,198.05,0.12]
[1756748086473,26.0,198.08,198.05,0.12]
[1756748086667,26.7,198.08,198.05,0.12]
[1756748087578,0.7,198.07,198.05,0.12]
[1756748087782,0.7,198.06,198.05,0.12]
[1756748088700,26.0,198.08,198.05,0.12]
[1756748089070,0.7,198.07,198.05,0.12]
[1756748089903,0.7,198.09,198.05,0.12]
[1756748090097,0.7,198.08,198.05,0.12]
[1756748090302,0.7,198.07,198.05,0.12]
[1756748090899,0.7,198.06,198.05,0.12]
[1756748091308,2.024752,198.08,198.05,0.12]
[1756748091477,0.7,198.09,198.05,0.12]
[1756748091677,26.7,198.08,198.05,0.12]
[1756748092489,26.0,198.09,198.05,0.12]
[1756748092691,0.7,198.14,198.06,0.66]
[1756748093203,26.0,198.13,198.06,0.66]
[1756748094877,26.7,198.13,198.06,0.66]
[1756748095419,29.35663654,198.12,198.06,0.66]
[1756748095615,26.0,198.12,198.06,0.66]
[1756748095981,26.0,198.13,198.06,0.66]
[1756748096408,0.7,198.12,198.05,0.12]
[1756748096575,0.7,198.12,198.05,40.46]
[1756748096781,0.7,198.12,198.05,41.12]
[1756748097219,26.0,198.14,198.05,40.46]
[1756748097380,29.35885292,198.13,198.06,0.66]
[1756748097577,26.0,198.13,198.06,0.66]
[1756748098189,26.0,198.1,198.06,0.66]
[1756748098485,26.7,198.14,198.06,0.66]
[1756748098690,3.3593317,198.13,198.06,0.66]
[1756748099518,0.7,198.12,198.06,40.34]
[1756748099880,0.73,198.12,198.06,40.34]
[1756748100421,0.03,198.12,198.07,0.66]
[1756748100581,0.03,198.12,198.08,0.66]
[1756748100789,0.03,198.12,198.09,40.34]
[1756748101692,0.03,198.12,198.07,0.66]
[1756748101885,0.03,198.12,198.08,41.0]
[1756748102607,0.03,198.12,198.09,0.66]
[1756748102993,0.03,198.12,198.1,0.66]
[1756748104296,0.03,198.12,198.11,13.73775558]
[1756748104677,0.03,198.12,198.11,18.68740795]
[1756748104880,0.03,198.12,198.11,23.73510872]
[1756748106077,0.03,198.12,198.11,26.30178909]
[1756748108116,0.03,198.12,198.11,66.62178909]
[1756748109517,0.03,198.16,198.11,66.62178909]
[1756748109518,0.03,198.16,198.15,33.73775558]
[1756748109706,0.03,198.16,198.15,96.5887565]
[1756748110015,0.03,198.16,198.15,97.2787565]
[1756748110403,0.03,198.16,198.15,102.3254383]
[1756748110602,0.03,198.16,198.15,101.82077012]
[1756748111219,1e-08,198.18,198.17,48.90775558]
[1756748111389,1e-08,198.18,198.17,56.26870556]
[1756748111596,1e-08,198.18,198.17,56.95870556]
[1756748113534,1e-08,198.2,198.19,66.59408832]
[1756748113826,1e-08,198.2,198.19,107.39865464]
[1756748113996,1e-08,198.2,198.19,107.58408832]
[1756748114625,0.03,198.22,198.21,59.59559401]
[1756748114822,0.03,198.22,198.21,67.09860373]
[1756748115125,0.03,198.22,198.21,67.78860373]
[1756748115515,0.03,198.3,198.21,67.78860373]
[1756748115516,0.03,198.3,198.22,66.59408832]
[1756748115706,1e-08,198.23,198.22,107.58408832]
[1756748116713,1e-08,198.23,198.22,65.47265518]
[1756748116918,1e-08,198.23,198.22,113.13347788]
[1756748117229,1e-08,198.23,198.22,112.62898792]
[1756748117409,1e-08,198.23,198.22,72.32898792]
[1756748117721,1e-08,198.23,198.22,113.11347788]
[1756748117908,1e-08,198.23,198.22,112.60898792]
[1756748118613,1e-08,198.23,198.22,105.75265518]
[1756748118815,1e-08,198.23,198.22,72.32898792]
[1756748119123,1e-08,198.23,198.22,113.11347788]
[1756748119326,1e-08,198.23,198.22,112.60898792]
[1756748120228,1e-08,198.23,198.22,86.60898792]
[1756748120433,1e-08,198.23,198.22,87.11347788]
[1756748120812,0.03,198.28,198.23,38.78240068]
[1756748121026,0.03,198.28,198.23,46.32873342]
[1756748121422,0.03,198.28,198.23,59.06240068]
[1756748121829,0.03,198.28,198.23,146.90873342]
[1756748122025,0.03,198.28,198.23,166.90873342]
[1756748122924,0.03,198.28,198.23,146.90873342]
[1756748123526,0.67,198.27,198.23,93.89559401]
[1756748123708,0.67,198.27,198.23,141.53639126]
[1756748124030,0.03,198.28,198.23,141.17408832]
[1756748124433,0.03,198.28,198.23,146.21873342]
[1756748124625,0.03,198.28,198.23,65.91873342]
[1756748124824,0.7,198.26,198.23,21.09855283]
[1756748125025,0.7,198.24,198.23,61.35855283]
[1756748125224,0.7,198.24,198.14,6.85633274]
[1756748125427,0.67,198.23,198.15,40.26]
[1756748125606,0.67,198.22,198.16,13.59559401]
[1756748125817,0.67,198.21,198.11,43.25633274]
[1756748126033,0.67,198.2,198.12,40.26]
[1756748126232,0.67,198.19,198.12,40.26]
[1756748126432,0.67,198.18,198.13,13.73775558]
[1756748126638,0.03,198.24,198.13,13.73775558]
[1756748126639,0.67,198.17,198.15,13.73775558]
[1756748126931,0.03,198.24,198.16,40.26]
[1756748127135,0.03,198.24,198.17,40.26]
[1756748127344,0.67,198.23,198.17,40.26]
[1756748127642,0.67,198.22,198.17,40.26]
[1756748127844,0.67,198.21,198.17,40.26]
[1756748128021,0.67,198.2,198.17,40.26]
[1756748128222,0.67,198.19,198.17,40.26]
[1756748128528,0.67,198.18,198.17,40.26]
[1756748129720,0.67,198.18,198.11,36.4]
[1756748129939,0.67,198.17,198.12,40.42216157]
[1756748130120,0.67,198.16,198.12,40.28]
[1756748130436,0.67,198.15,198.12,40.28]
[1756748130748,0.67,198.18,198.12,40.28]
[1756748130919,26.03,198.24,198.12,40.28]
[1756748131244,26.03,198.24,198.13,0.14216157]
[1756748131245,28.63957969,198.22,198.13,0.14216157]
[1756748131558,26.0,198.22,198.13,0.14216157]
[1756748131726,0.67,198.21,198.13,13.73775558]
[1756748131912,0.67,198.2,198.13,13.73775558]
[1756748132118,0.03,198.24,198.15,13.59559401]
[1756748132318,0.67,198.23,198.16,40.42216157]
[1756748132529,0.67,198.22,198.16,40.42216157]
[1756748132728,0.67,198.21,198.16,40.42216157]
[1756748132934,0.67,198.2,198.16,40.42216157]
[1756748133618,0.67,198.2,198.18,0.14216157]
[1756748133822,0.67,198.2,198.19,40.28]
[1756748137848,0.74,198.23,198.19,40.28]
[1756748138054,0.74,198.23,198.2,0.14216157]
[1756748139321,0.03,198.23,198.2,0.14216157]
[1756748139725,0.03,198.23,198.21,40.28]
[1756748140427,0.71,198.22,198.21,40.28]
[1756748140649,0.03,198.23,198.21,40.28]
[1756748140953,0.74,198.23,198.21,40.28]
[1756748141150,0.71,198.22,198.2,0.14216157]
[1756748141354,0.71,198.22,198.21,40.28]
[1756748141654,0.03,198.23,198.21,40.28]
[1756748142039,0.71,198.22,198.21,40.28]
[1756748142551,0.71,198.22,198.17,80.3]
[1756748142849,0.71,198.21,198.18,40.28]
[1756748143056,0.71,198.2,198.18,40.28]
[1756748143435,0.03,198.23,198.18,40.28]
[1756748143660,0.71,198.22,198.18,40.28]
[1756748143852,0.71,198.21,198.18,40.28]
[1756748144035,0.71,198.2,198.18,40.28]
[1756748144533,0.03,198.23,198.2,0.14216157]
[1756748144740,0.03,198.23,198.21,40.26]
[1756748144953,0.03,198.23,198.21,40.94]
[1756748145449,0.03,198.23,198.22,14.41775558]
[1756748146066,0.03,198.23,198.22,14.92224554]
[1756748147136,0.03,198.24,198.22,33.6844995]
[1756748147340,0.03,198.26,198.22,33.6844995]
[1756748147341,1e-08,198.26,198.25,20.0]
[1756748147541,1e-08,198.27,198.26,33.73775558]
[1756748147738,0.2,198.41,198.29,33.73775558]
[1756748147935,2.221121,198.41,198.32,39.59559401]
[1756748148254,0.2,198.41,198.32,87.36066833]
[1756748148556,0.2,198.41,198.32,113.08302411]
[1756748148868,0.2,198.41,198.32,112.57878854]
[1756748149154,0.2,198.41,198.32,117.59742618]
[1756748149847,0.2,198.41,198.32,77.33742618]
[1756748150044,0.2,198.41,198.32,118.10166175]
[1756748150225,0.2,198.41,198.32,117.59742618]
[1756748151538,0.91,198.41,198.32,77.33742618]
[1756748151751,0.91,198.41,198.32,118.10166175]
[1756748152057,0.2,198.41,198.32,117.59742618]
[1756748153037,0.91,198.41,198.32,77.33742618]
[1756748153239,0.91,198.41,198.32,118.08166175]
[1756748153461,0.2,198.41,198.32,117.57742618]
[1756748153638,0.2,198.41,198.32,197.87742618]
[1756748154334,0.74,198.4,198.32,157.63742618]
[1756748154532,0.74,198.4,198.32,197.87742618]
[1756748154857,0.03,198.4,198.35,59.59559401]
[1756748155172,0.03,198.4,198.35,187.64059206]
[1756748155465,0.03,198.4,198.35,187.81643275]
[1756748155835,0.03,198.4,198.35,192.85802589]
[1756748156462,0.03,198.4,198.39,13.59559401]
[1756748156661,0.2,198.41,198.4,59.73775558]
[1756748156835,0.2,198.41,198.4,107.51643276]
[1756748157032,0.2,198.41,198.4,60.41775558]
[1756748157237,0.2,198.41,198.4,67.27643276]
[1756748157629,0.2,198.41,198.4,112.55675534]
[1756748157946,0.2,198.41,198.4,112.57675534]
[1756748158466,0.2,198.41,198.4,44.77807816]
[1756748158656,0.2,198.41,198.4,51.63675534]
[1756748158858,0.2,198.41,198.4,91.87675534]
[1756748159041,0.2,198.41,198.4,111.87675534]
[1756748159236,0.2,198.41,198.4,111.89675534]
[1756748159443,0.2,198.41,198.4,112.57675534]
[1756748159651,0.2,198.41,198.4,72.31675534]
[1756748159860,0.2,198.41,198.4,113.08078759]
[1756748160055,0.2,198.41,198.4,112.57675534]
[1756748160570,0.2,198.41,198.4,112.55675534]
[1756748162245,0.2,198.41,198.4,71.63675534]
[1756748162451,0.2,198.41,198.4,105.50211041]
[1756748162772,0.2,198.41,198.4,112.53675534]
[1756748163074,0.2,198.41,198.4,104.99807816]
[1756748163247,0.91,198.41,198.4,93.895594]
[1756748163459,0.91,198.41,198.4,134.115594]
[1756748163759,0.2,198.41,198.4,146.83675533]
[1756748163941,1e-08,198.41,198.4,86.53675534]
[1756748164142,1e-08,198.41,198.4,87.04078759]
[1756748164375,1e-08,198.42,198.41,59.73775558]
[1756748164575,1e-08,198.42,198.41,72.3165013]
[1756748165055,1e-08,198.42,198.41,112.5365013]
[1756748165645,1e-08,198.42,198.41,64.77782412]
[1756748165847,1e-08,198.42,198.41,72.14050815]
[1756748166062,1e-08,198.42,198.41,92.36050815]
[1756748166539,1e-08,198.42,198.41,113.07050815]
[1756748166755,1e-08,198.42,198.41,112.5665013]
[1756748167446,1e-08,198.42,198.41,86.5665013]
[1756748167638,1e-08,198.42,198.41,80.21183097]
[1756748167852,1e-08,198.42,198.41,102.24050815]
[1756748168055,1e-08,198.43,198.42,33.73775558]
[1756748168387,1e-08,198.45,198.44,48.76559401]
[1756748168673,0.7,198.56,198.52,0.14216157]
[1756748168878,0.7,198.55,198.54,13.73775558]
[1756748169048,0.7,198.55,198.54,53.95775558]
[1756748169550,0.7,198.55,198.54,0.14216157]
[1756748169752,0.7,198.55,198.54,53.95775558]
[1756748170456,0.7,198.58,198.54,58.99452398]
[1756748170659,0.7,198.58,198.56,0.14216157]
[1756748170861,0.7,198.58,198.57,53.81559401]
[1756748171470,0.9,198.61,198.58,18.77341129]
[1756748171678,0.2,198.61,198.6,0.14216157]
[1756748172382,0.9,198.61,198.6,0.14216157]
[1756748172580,0.9,198.61,198.6,13.73775558]
[1756748174155,0.9,198.61,198.6,26.13520415]
[1756748174156,0.2,198.61,198.6,26.13520415]
[1756748174355,0.2,198.61,198.6,26.84520415]
[1756748174960,0.2,198.61,198.6,19.98652697]
[1756748175177,0.2,198.61,198.6,26.84520415]
[1756748176657,0.2,198.61,198.6,19.27652697]
[1756748176861,0.2,198.61,198.6,59.55652697]
[1756748177056,0.2,198.61,198.6,14.24128025]
[1756748177254,0.2,198.61,198.6,54.01775558]
[1756748177482,0.2,198.61,198.6,59.0530023]
[1756748177777,0.2,198.61,198.6,79.85559401]
[1756748177984,0.2,198.61,198.6,79.99775558]
[1756748178879,0.2,198.61,198.6,13.59559401]
[1756748178880,0.9,198.61,198.6,13.59559401]
[1756748179183,0.9,198.61,198.6,53.83559401]
[1756748179575,0.9,198.61,198.6,13.59559401]
[1756748179786,0.9,198.61,198.6,40.24]
[1756748180160,0.9,198.61,198.6,53.83559401]
[1756748180559,0.2,198.61,198.6,53.97775558]
[1756748180978,0.2,198.61,198.6,65.87167948]
[1756748181172,0.2,198.61,198.6,66.58167948]
[1756748181607,0.2,198.61,198.6,26.34167948]
[1756748181888,0.2,198.61,198.6,65.87167948]
[1756748182392,0.2,198.61,198.6,13.59559401]
[1756748182393,0.9,198.61,198.6,13.59559401]
[1756748182685,0.9,198.61,198.6,53.85559401]
[1756748182895,0.2,198.61,198.6,53.99775558]
[1756748183285,0.9,198.61,198.6,13.73775558]
[1756748183585,0.9,198.61,198.6,40.26]
[1756748183899,0.9,198.61,198.56,13.59559401]
[1756748184072,0.9,198.61,198.53,26.0]
[1756748184073,0.7,198.6,198.58,13.59559401]
[1756748184282,0.2,198.61,198.59,40.26]
[1756748184805,0.7,198.6,198.59,40.26]
[1756748185096,0.7,198.6,198.59,40.40216157]
[1756748185477,0.7,198.6,198.59,40.26]
[1756748185884,0.7,198.6,198.53,5.03697668]
[1756748185885,0.7,198.6,198.52,13.59559401]
[1756748186096,0.7,198.59,198.54,13.59559401]
[1756748186294,0.7,198.58,198.55,40.24]
[1756748186581,0.7,198.57,198.55,40.24]
[1756748186797,0.7,198.56,198.55,40.24]
[1756748187690,0.7,198.56,198.55,40.38216157]
[1756748188074,0.7,198.56,198.55,40.24]
[1756748188401,0.7,198.56,198.52,13.59559401]
[1756748188588,0.7,198.58,198.54,13.59559401]
[1756748188789,0.7,198.57,198.55,40.36216157]
[1756748189101,0.7,198.56,198.55,53.95775558]
[1756748189307,0.7,198.56,198.55,40.22]
[1756748189711,0.7,198.56,198.55,40.2]
[1756748190288,0.7,198.56,198.52,0.14216157]
[1756748190578,0.7,198.56,198.53,40.2]
[1756748190814,0.7,198.55,198.53,40.2]
[1756748191012,0.7,198.54,198.53,40.2]
[1756748192686,0.7,198.54,198.53,40.18]
[1756748192902,0.7,198.54,198.5,36.34]
[1756748193079,0.7,198.53,198.5,36.34]
[1756748193285,0.7,198.52,198.51,40.18]
[1756748194808,0.7,198.55,198.51,40.18]
[1756748195602,0.72,198.57,198.52,0.14216157]
[1756748195919,0.72,198.6,198.54,13.73775558]
[1756748196119,0.72,198.6,198.55,40.2]
[1756748196286,0.72,198.6,198.56,0.14216157]
[1756748196481,0.2,198.61,198.58,0.14216157]
[1756748196703,0.2,198.61,198.59,40.2]
[1756748198801,0.2,198.61,198.6,0.14216157]
[1756748199916,0.2,198.61,198.6,13.73775558]
[1756748200094,0.2,198.61,198.6,14.40775558]
[1756748200488,0.2,198.61,198.57,0.67]
[1756748200702,0.92,198.61,198.58,40.2]
[1756748200920,0.72,198.6,198.51,0.67]
[1756748201093,0.72,198.6,198.53,13.59559401]
[1756748201425,0.72,198.6,198.54,3.74396042]
[1756748201634,0.72,198.6,198.53,13.59559401]
[1756748201635,0.72,198.6,198.55,40.2]
[1756748201795,0.72,198.6,198.56,13.59559401]
[1756748202111,0.2,198.61,198.55,40.2]
[1756748202318,0.72,198.59,198.56,0.14216157]
[1756748202502,0.72,198.58,198.56,0.14216157]
[1756748203012,0.92,198.61,198.56,13.73775558]
[1756748203320,0.72,198.6,198.56,13.59559401]
[1756748203491,0.72,198.59,198.57,40.2]
[1756748203691,0.2,198.61,198.51,13.59559401]
[1756748203892,26.2,198.61,198.5,36.34]
[1756748204192,26.0,198.57,198.51,40.2]
[1756748204388,0.72,198.56,198.51,40.2]
[1756748204588,0.72,198.55,198.51,40.2]
[1756748205194,0.72,198.54,198.48,13.59559401]